bitfinex-derivatives/quotes_SOLF0:USTF0_20250829
["timestamp","ask_amount","ask_price","bid_price","bid_amount"]
[1756467180019,117.09,208.02,207.92,7.32]
[1756467180417,180.2309715,208.06,207.92,7.32]
[1756467180615,121.0,208.04,207.94,7.32]
[1756467180818,121.0,208.04,207.94,3.98227396]
[1756467181015,121.0,208.04,207.95,11.30227396]
[1756467181518,121.0,208.04,207.95,7.32]
[1756467183421,7.49,208.03,207.95,7.32]
[1756467187617,7.49,208.03,207.91,3.98227396]
[1756467187818,7.84,208.03,207.91,11.72227396]
[1756467188516,120.96,208.04,207.91,11.72227396]
[1756467188817,7.84,208.03,207.91,11.72227396]
[1756467189216,120.96,208.04,207.91,11.72227396]
[1756467189416,7.84,208.03,207.91,11.72227396]
[1756467190212,120.96,208.04,207.91,11.72227396]
[1756467190409,7.84,208.03,207.91,11.72227396]
[1756467190617,120.96,208.04,207.91,11.72227396]
[1756467190812,7.84,208.03,207.91,11.72227396]
[1756467191013,7.84,208.03,207.91,7.74]
[1756467194023,7.84,208.01,207.91,11.72227396]
[1756467194228,7.84,208.01,207.91,7.74]
[1756467195724,0.83686033,208.06,207.91,11.72227396]
[1756467195923,7.84,208.05,207.96,3.98227396]
[1756467196127,7.84,208.05,207.97,7.74]
[1756467196323,0.83686033,208.06,207.97,7.74]
[1756467197921,7.84,208.07,207.97,7.74]
[1756467198127,7.84,208.07,207.98,7.74]
[1756467200632,24.82,208.08,207.94,9.663181]
[1756467200633,24.82,208.08,207.95,7.74]
[1756467200833,7.84,208.07,207.95,7.74]
[1756467201032,24.82,208.08,207.95,11.76159542]
[1756467201232,7.84,208.07,207.95,11.76159542]
[1756467201728,24.82,208.08,207.95,11.76159542]
[1756467202533,7.84,208.07,207.95,11.76159542]
[1756467203028,24.82,208.08,207.95,11.76159542]
[1756467203634,7.84,208.07,207.95,11.76159542]
[1756467205135,7.84,208.07,207.96,7.74]
[1756467205829,7.84,208.07,207.97,7.74]
[1756467207028,7.84,208.07,207.97,11.76692393]
[1756467207228,7.84,208.07,207.98,7.74]
[1756467211039,120.8,208.06,207.98,7.74]
[1756467211237,7.84,208.07,207.98,11.76692393]
[1756467211435,128.64,208.07,207.98,11.76692393]
[1756467212035,7.84,208.07,207.98,11.76692393]
[1756467212236,63.38,208.07,207.98,11.76692393]
[1756467214040,7.84,208.07,207.98,4.02692393]
[1756467214241,179.81287686,208.13,208.03,11.76692393]
[1756467214242,7.84,208.12,208.03,11.76692393]
[1756467214446,7.84,208.12,208.03,7.74]
[1756467214740,8.67657868,208.12,208.03,11.76692393]
[1756467217343,8.67657868,208.12,208.03,7.74]
[1756467218144,8.67657868,208.12,208.0,4.02692393]
[1756467218343,120.76,208.11,207.98,11.29692393]
[1756467218542,7.17,208.1,207.98,11.29692393]
[1756467218743,120.76,208.11,207.98,11.29692393]
[1756467219239,7.17,208.1,207.98,11.29692393]
[1756467219445,7.17,208.1,207.99,4.02692393]
[1756467219742,7.17,208.08,207.99,4.02692393]
[1756467222343,120.76,208.09,207.94,11.29692393]
[1756467223845,120.76,208.09,207.94,7.27]
[1756467224045,7.17,208.08,207.94,7.27]
[1756467224849,7.17,208.06,207.96,7.27]
[1756467225939,7.17,208.11,207.96,7.27]
[1756467226140,7.17,208.11,208.01,7.27]
[1756467226444,7.17,208.11,208.01,11.29692393]
[1756467227548,127.89,208.11,208.01,11.29692393]
[1756467227947,7.17,208.11,208.02,7.27]
[1756467228148,127.89,208.11,208.02,11.29692393]
[1756467228651,127.89,208.11,208.03,7.27]
[1756467230052,120.72,208.11,208.03,7.27]
[1756467231352,120.7,208.11,208.03,7.27]
[1756467233248,7.17,208.1,208.03,7.27]
[1756467233648,7.17,208.1,208.01,4.02692393]
[1756467234047,7.17,208.1,208.0,4.02692393]
[1756467235155,120.68,208.09,207.99,11.29692393]
[1756467237856,7.17,208.08,207.99,11.29692393]
[1756467240455,7.17,208.08,208.0,4.02692393]
[1756467240655,120.66,208.07,208.0,4.02692393]
[1756467241056,120.66,208.07,208.0,4.03198342]
[1756467241456,120.66,208.07,207.99,11.30198342]
[1756467241659,120.64,208.07,208.0,4.03198342]
[1756467241854,120.64,208.07,208.01,7.27]
[1756467242349,127.81,208.08,208.01,7.27]
[1756467242550,120.64,208.09,208.02,7.27]
[1756467242751,8.00657868,208.12,208.03,11.30198342]
[1756467242959,179.81287686,208.13,208.05,11.30198342]
[1756467243153,179.81287686,208.13,208.06,7.27]
[1756467243350,179.81287686,208.13,208.06,4.03198342]
[1756467243548,179.81287686,208.13,208.07,7.27]
[1756467244160,179.81287686,208.13,208.07,11.30198342]
[1756467244353,186.98287686,208.13,208.07,4.03198342]
[1756467244558,186.98287686,208.13,208.04,5.335581]
[1756467244559,186.98287686,208.13,208.05,4.03198342]
[1756467244758,186.98287686,208.13,208.04,11.30198342]
[1756467245360,307.60287686,208.13,208.04,11.30198342]
[1756467245562,307.60287686,208.13,208.06,7.27]
[1756467246860,308.43929468,208.13,208.04,4.03198342]
[1756467247161,308.43929468,208.13,208.03,4.03198342]
[1756467248256,308.43929468,208.13,208.0,4.03198342]
[1756467248457,7.9,208.12,207.98,11.44198342]
[1756467248857,301.26929468,208.13,207.98,11.44198342]
[1756467249063,7.9,208.12,207.98,11.44198342]
[1756467249258,301.26929468,208.13,207.98,11.44198342]
[1756467249453,7.9,208.12,207.97,4.03198342]
[1756467249653,7.9,208.12,207.96,4.03198342]
[1756467249961,7.9,208.12,207.95,4.03198342]
[1756467250458,22.32,208.1,207.92,4.03198342]
[1756467250665,7.9,208.08,207.91,4.03198342]
[1756467250865,7.9,208.06,207.91,4.03198342]
[1756467251963,27.68300951,208.06,207.88,4.03198342]
[1756467252367,22.32,208.06,207.87,4.03198342]
[1756467252971,7.9,208.04,207.87,4.03198342]
[1756467254376,7.9,208.04,207.86,4.03198342]
[1756467255472,43.38,208.03,207.86,4.03198342]
[1756467255672,7.9,208.02,207.86,4.03198342]
[1756467256578,7.9,208.02,207.85,7.41]
[1756467256878,7.9,208.02,207.86,7.41]
[1756467257669,7.9,208.0,207.86,7.41]
[1756467258980,7.9,207.98,207.86,7.41]
[1756467262883,110.02,207.97,207.86,7.41]
[1756467263784,7.9,207.98,207.86,7.41]
[1756467263985,26.22,207.97,207.86,7.41]
[1756467264174,26.22,207.97,207.86,11.44198342]
[1756467264378,26.22,207.97,207.87,7.41]
[1756467268380,7.9,207.98,207.87,7.41]
[1756467277090,323.0,208.09,207.88,4.03198342]
[1756467277389,127.78,208.08,207.91,7.49]
[1756467279490,127.78,208.08,207.91,11.52198342]
[1756467279491,7.22,208.08,207.91,11.52198342]
[1756467279691,7.22,208.06,207.93,7.49]
[1756467281400,330.22,208.09,207.95,7.49]
[1756467281689,323.0,208.09,207.97,11.52198342]
[1756467281898,7.22,208.09,207.99,7.49]
[1756467282393,7.22,208.06,207.99,7.49]
[1756467285904,0.83664908,208.07,207.99,7.49]
[1756467290494,7.22,208.1,207.99,7.49]
[1756467290897,0.83661891,208.09,207.99,7.49]
[1756467300217,7.22,208.15,207.99,11.52198342]
[1756467300512,7.22,208.15,208.03,7.49]
[1756467303914,33.68,208.25,208.07,4.00013117]
[1756467304115,0.83624698,208.22,208.07,4.00013117]
[1756467304621,7.22,208.21,208.07,7.49]
[1756467305321,7.22,208.21,208.04,7.49]
[1756467307720,21.64,208.21,208.04,7.49]
[1756467308224,27.00300951,208.21,207.99,7.24]
[1756467308626,14.42,208.19,207.99,7.24]
[1756467308818,22.22,208.18,207.99,7.24]
[1756467309020,22.22,208.15,207.99,7.24]
[1756467309824,22.22,208.15,207.94,7.24]
[1756467310227,18.36,208.14,207.94,7.24]
[1756467310427,7.8,208.13,207.94,7.24]
[1756467311126,7.8,208.11,207.94,7.24]
[1756467312023,7.8,208.09,207.94,7.24]
[1756467313128,7.8,208.07,207.89,11.24013117]
[1756467313428,7.8,208.07,207.89,7.24]
[1756467314425,22.22,208.07,207.89,7.24]
[1756467318621,22.22,208.07,207.84,11.24013117]
[1756467318826,14.42,208.03,207.84,7.24]
[1756467319025,22.22,208.02,207.84,7.24]
[1756467320132,7.8,208.0,207.84,7.24]
[1756467320331,7.8,207.98,207.84,7.24]
[1756467321827,7.8,207.96,207.84,7.24]
[1756467322027,7.8,207.94,207.77,7.24]
[1756467325731,35.42,207.93,207.77,7.24]
[1756467325925,7.8,207.92,207.77,7.24]
[1756467326333,34.84,207.91,207.77,7.24]
[1756467326632,7.8,207.9,207.77,7.24]
[1756467327723,7.8,207.88,207.77,7.24]
[1756467327925,112.28,207.87,207.77,7.24]
[1756467328329,7.8,207.86,207.77,7.24]
[1756467330932,7.8,207.86,207.67,7.24]
[1756467334629,7.8,207.84,207.67,7.24]
[1756467335632,6.12,207.85,207.67,7.24]
[1756467335829,2.78,207.87,207.69,4.3329]
[1756467336135,2.78,207.87,207.7,7.24]
[1756467337930,7.8,207.89,207.7,7.24]
[1756467338235,120.4,207.88,207.7,7.24]
[1756467338732,7.8,207.89,207.67,11.39013117]
[1756467338927,7.8,207.89,207.69,7.39]
[1756467339131,120.38,207.88,207.71,7.39]
[1756467339634,120.38,207.88,207.71,4.3325]
[1756467339931,120.38,207.88,207.72,7.39]
[1756467341235,7.8,207.89,207.72,7.39]
[1756467341439,45.1,207.88,207.72,7.39]
[1756467342035,92.18,207.89,207.72,7.39]
[1756467343339,119.24,207.89,207.72,7.39]
[1756467343734,7.8,207.89,207.72,7.39]
[1756467344140,7.29,207.93,207.72,7.39]
[1756467344439,120.38,207.92,207.73,7.39]
[1756467344637,7.29,207.91,207.73,7.39]
[1756467344836,7.29,207.91,207.72,4.00013117]
[1756467344837,7.29,207.91,207.76,7.39]
[1756467346336,106.71,207.91,207.76,7.39]
[1756467349642,7.29,207.91,207.76,7.39]
[1756467349842,7.29,207.91,207.77,7.39]
[1756467350043,7.29,207.91,207.78,7.39]
[1756467350245,7.29,207.91,207.79,7.39]
[1756467350442,7.29,207.91,207.79,11.39013117]
[1756467350647,7.29,207.91,207.8,7.39]
[1756467351838,7.29,207.91,207.81,7.39]
[1756467352243,7.29,207.91,207.82,7.39]
[1756467353143,323.14,207.95,207.84,7.39]
[1756467353345,323.14,207.95,207.85,11.39013117]
[1756467353544,7.29,207.96,207.86,7.39]
[1756467354140,7.29,207.96,207.86,11.39013117]
[1756467356143,7.29,207.96,207.87,4.00013117]
[1756467357451,7.29,207.96,207.88,7.39]
[1756467360956,63.6,208.03,207.9,7.39]
[1756467361251,7.29,208.02,207.91,7.39]
[1756467361654,7.29,208.02,207.87,4.00013117]
[1756467361856,7.29,208.02,207.88,7.39]
[1756467362053,7.29,208.02,207.87,4.00013117]
[1756467362356,7.29,208.02,207.85,4.00013117]
[1756467362556,86.5,208.05,207.84,11.39013117]
[1756467362851,7.29,208.04,207.83,4.00013117]
[1756467363452,7.29,208.04,207.81,12.725581]
[1756467363453,21.73,208.02,207.82,4.00013117]
[1756467363655,14.44,208.02,207.81,11.39013117]
[1756467363854,7.29,208.01,207.82,7.39]
[1756467366359,62.52,208.0,207.79,11.39013117]
[1756467366557,14.44,208.02,207.79,11.39013117]
[1756467366558,53.94,207.99,207.79,7.39]
[1756467367254,7.52,207.98,207.8,7.63]
[1756467367452,7.52,207.98,207.83,7.63]
[1756467367655,7.52,207.98,207.83,4.00013117]
[1756467367851,7.52,207.98,207.84,7.63]
[1756467371766,7.52,207.98,207.82,4.00013117]
[1756467372068,7.52,207.98,207.8,7.63]
[1756467375263,21.96,207.98,207.8,7.63]
[1756467375467,27.32300951,207.98,207.76,7.63]
[1756467375968,14.44,207.94,207.76,7.63]
[1756467376161,7.52,207.95,207.76,7.63]
[1756467376162,21.96,207.93,207.76,7.63]
[1756467376876,14.44,207.91,207.72,7.63]
[1756467377074,69.3,207.9,207.72,7.63]
[1756467377262,83.74,207.9,207.72,7.63]
[1756467377973,83.74,207.9,207.68,4.00634309]
[1756467378162,83.74,207.9,207.66,5.335581]
[1756467378163,89.10300951,207.9,207.66,4.00634309]
[1756467378367,179.46072664,207.95,207.64,4.00634309]
[1756467378368,7.52,207.87,207.64,4.00634309]
[1756467378667,7.52,207.87,207.63,7.63]
[1756467378668,7.52,207.87,207.65,7.63]
[1756467381268,21.96,207.85,207.65,7.63]
[1756467381468,7.52,207.83,207.65,7.63]
[1756467381663,44.92,207.82,207.65,7.63]
[1756467381965,7.52,207.81,207.65,7.63]
[1756467384070,7.52,207.79,207.65,7.63]
[1756467384474,67.38,207.78,207.65,7.63]
[1756467384773,7.52,207.77,207.65,7.63]
[1756467385275,98.26,207.76,207.65,7.63]
[1756467385468,120.32,207.75,207.65,7.63]
[1756467386271,7.52,207.74,207.65,7.63]
[1756467386673,120.32,207.73,207.65,7.63]
[1756467387476,120.34,207.74,207.65,7.63]
[1756467390284,7.14317806,207.73,207.65,7.63]
[1756467392489,127.50317806,207.73,207.65,7.63]
[1756467392982,7.52,207.75,207.65,7.63]
[1756467393188,120.36,207.74,207.65,7.63]
[1756467393584,127.50317806,207.74,207.65,7.63]
[1756467394187,7.52,207.73,207.65,7.63]
[1756467394387,127.88,207.73,207.65,7.63]
[1756467394590,7.14317806,207.71,207.65,7.63]
[1756467394888,7.52,207.7,207.58,7.63]
[1756467395088,7.14317806,207.68,207.58,7.63]
[1756467396988,30.56317806,207.68,207.58,7.63]
[1756467397489,7.4,207.67,207.58,7.63]
[1756467397681,14.54317806,207.63,207.51,7.84]
[1756467399182,7.4,207.63,207.51,7.84]
[1756467399383,7.14317806,207.6,207.51,7.84]
[1756467400995,7.14317806,207.54,207.51,7.84]
[1756467401190,7.14317806,207.54,207.44,7.84]
[1756467404792,117.56,207.56,207.44,7.84]
[1756467404793,7.4,207.64,207.44,7.84]
[1756467404987,7.14317806,207.61,207.48,7.84]
[1756467405183,7.14317806,207.58,207.48,7.84]
[1756467406586,118.06,207.6,207.48,7.84]
[1756467406787,14.54317806,207.61,207.48,7.84]
[1756467412093,7.4,207.61,207.48,7.84]
[1756467412299,7.4,207.61,207.49,7.84]
[1756467413093,7.4,207.61,207.5,7.84]
[1756467413294,7.14317806,207.72,207.5,7.14317806]
[1756467413504,7.4,207.64,207.51,7.84]
[1756467415497,7.14317806,207.62,207.51,7.84]
[1756467417496,7.14317806,207.62,207.52,7.84]
[1756467417693,323.6,207.69,207.52,7.84]
[1756467417902,14.54317806,207.68,207.56,7.84]
[1756467418300,14.54317806,207.68,207.57,7.84]
[1756467419205,14.54317806,207.68,207.57,11.84271476]
[1756467419498,14.54317806,207.68,207.58,7.84]
[1756467420196,7.4,207.64,207.58,7.84]
[1756467420402,323.6,207.69,207.54,11.84271476]
[1756467420403,7.4,207.61,207.54,11.84271476]
[1756467420704,7.4,207.68,207.59,7.84]
[1756467421099,7.4,207.68,207.6,1.85017617]
[1756467421300,7.4,207.68,207.59,11.84271476]
[1756467421495,7.4,207.68,207.6,1.85116063]
[1756467421802,7.4,207.68,207.61,1.85116063]
[1756467421998,7.4,207.72,207.63,7.84]
[1756467422193,7.4,207.72,207.64,1.85116063]
[1756467422393,7.4,207.72,207.65,1.85116063]
[1756467422596,7.4,207.72,207.66,1.85116063]
[1756467422796,7.4,207.72,207.63,7.84]
[1756467422997,7.4,207.72,207.64,1.72109604]
[1756467423201,7.4,207.72,207.65,1.72109604]
[1756467423504,7.4,207.72,207.66,1.72109604]
[1756467423805,7.4,207.72,207.63,7.84]
[1756467424003,7.4,207.72,207.64,1.72151257]
[1756467424304,7.4,207.72,207.65,1.72151257]
[1756467424504,7.4,207.72,207.66,1.72151257]
[1756467424704,7.4,207.72,207.63,7.84]
[1756467424998,7.4,207.72,207.64,1.72179216]
[1756467425200,7.4,207.72,207.65,1.72179216]
[1756467425400,11.90396028,207.79,207.66,9.56179216]
[1756467425598,11.90396028,207.79,207.67,1.72179216]
[1756467425599,49.74,207.78,207.67,1.72179216]
[1756467425802,49.74,207.78,207.68,1.72179216]
[1756467426103,49.74,207.78,207.69,1.72179216]
[1756467426296,42.34,207.78,207.66,7.84]
[1756467426502,7.4,207.77,207.67,1.72060803]
[1756467426702,7.4,207.77,207.68,1.72060803]
[1756467426901,7.4,207.77,207.69,1.72060803]
[1756467427097,7.4,207.77,207.66,7.84]
[1756467427401,7.4,207.77,207.67,1.72047821]
[1756467427704,7.4,207.77,207.68,1.72047821]
[1756467428002,7.4,207.77,207.69,1.72047821]
[1756467428206,7.93,207.74,207.66,7.84]
[1756467428406,7.93,207.74,207.67,1.72075791]
[1756467428605,7.93,207.74,207.68,1.72075791]
[1756467428798,7.93,207.74,207.66,7.84]
[1756467428995,7.93,207.74,207.67,1.72059056]
[1756467429200,7.93,207.74,207.68,1.72059056]
[1756467429506,7.93,207.74,207.66,7.84]
[1756467429807,7.93,207.74,207.67,1.71997423]
[1756467430003,7.93,207.74,207.68,1.71997423]
[1756467430206,7.93,207.74,207.66,7.84]
[1756467430404,7.93,207.74,207.67,1.71975073]
[1756467430605,7.93,207.74,207.65,1.72025478]
[1756467430805,7.93,207.74,207.61,11.24271476]
[1756467431001,7.93,207.74,207.62,1.73606073]
[1756467431206,7.93,207.74,207.63,1.73606073]
[1756467431409,7.93,207.74,207.64,1.73606073]
[1756467431603,7.93,207.74,207.61,7.24]
[1756467431803,7.93,207.74,207.62,1.73587737]
[1756467432003,7.93,207.72,207.61,7.24]
[1756467432203,7.93,207.72,207.62,1.73550103]
[1756467432406,7.93,207.72,207.63,1.73550103]
[1756467432606,7.93,207.72,207.61,7.24]
[1756467432801,128.73,207.72,207.62,1.73559604]
[1756467433007,128.73,207.72,207.57,3.3138918]
[1756467433602,128.73,207.72,207.54,15.66]
[1756467433806,128.73,207.72,207.54,19.9961]
[1756467434012,7.93,207.71,207.54,19.9961]
[1756467434711,7.93,207.71,207.54,4.3361]
[1756467435007,7.93,207.7,207.55,7.24]
[1756467438715,48.47,207.7,207.55,7.24]
[1756467442206,11.90396028,207.71,207.55,7.24]
[1756467442207,7.93,207.68,207.55,7.24]
[1756467443322,7.14687837,207.66,207.55,7.24]
[1756467443522,7.93,207.65,207.55,7.24]
[1756467444921,7.93,207.65,207.56,1.66998812]
[1756467445218,7.93,207.65,207.55,7.24]
[1756467445219,7.93,207.65,207.57,1.66998812]
[1756467445418,7.93,207.65,207.58,1.66998812]
[1756467445720,7.93,207.65,207.59,1.66998812]
[1756467445916,7.93,207.65,207.55,7.24]
[1756467446120,7.93,207.65,207.56,1.6695412]
[1756467446320,7.93,207.65,207.57,1.6695412]
[1756467446521,7.93,207.65,207.58,1.6695412]
[1756467446819,7.93,207.65,207.59,1.6695412]
[1756467447023,7.93,207.65,207.55,7.24]
[1756467447223,7.93,207.65,207.56,1.66995229]
[1756467447519,7.93,207.65,207.57,1.66995229]
[1756467447719,7.93,207.65,207.58,1.66995229]
[1756467447921,7.93,207.65,207.59,1.66995229]
[1756467448120,7.93,207.65,207.55,7.24]
[1756467448326,7.93,207.65,207.56,1.6705632]
[1756467448514,7.93,207.65,207.57,1.6705632]
[1756467448720,7.93,207.65,207.58,1.6705632]
[1756467449022,7.93,207.65,207.59,1.6705632]
[1756467449212,7.14687837,207.66,207.6,1.6705632]
[1756467449414,7.93,207.65,207.55,7.24]
[1756467449613,7.14687837,207.72,207.57,7.24]
[1756467449817,7.93,207.71,207.59,7.24]
[1756467450122,7.93,207.71,207.5,37.771162]
[1756467450123,7.93,207.71,207.62,7.24]
[1756467450423,7.93,207.71,207.63,1.67129519]
[1756467450614,7.93,207.71,207.64,1.67129519]
[1756467450813,7.93,207.71,207.65,1.67129519]
[1756467451115,15.07687837,207.71,207.62,7.24]
[1756467451313,15.07687837,207.71,207.63,1.67121699]
[1756467451525,15.07687837,207.71,207.64,1.67121699]
[1756467451823,15.07687837,207.71,207.62,7.24]
[1756467452022,15.07687837,207.71,207.63,1.67099494]
[1756467452223,15.07687837,207.71,207.64,1.67099494]
[1756467452424,15.07687837,207.71,207.62,7.24]
[1756467452623,15.07687837,207.71,207.63,1.67140655]
[1756467452819,15.07687837,207.71,207.62,7.24]
[1756467453022,15.07687837,207.71,207.63,1.67140501]
[1756467453226,15.07687837,207.71,207.64,1.67168774]
[1756467453530,7.93,207.71,207.62,7.24]
[1756467453728,15.07687837,207.71,207.63,1.67168857]
[1756467453923,15.07687837,207.71,207.64,1.67168857]
[1756467454127,15.07687837,207.71,207.62,7.24]
[1756467454321,15.07687837,207.71,207.63,1.67179219]
[1756467454526,15.07687837,207.71,207.64,1.67179219]
[1756467454820,7.93,207.67,207.57,7.24]
[1756467455025,7.93,207.67,207.58,1.67255928]
[1756467455224,7.93,207.67,207.59,1.67255928]
[1756467455425,7.93,207.67,207.6,1.67255928]
[1756467455628,7.93,207.67,207.57,7.24]
[1756467455629,7.93,207.67,207.61,1.67255928]
[1756467455829,7.93,207.67,207.57,7.24]
[1756467456029,7.93,207.67,207.58,1.67290501]
[1756467456229,7.93,207.67,207.59,1.67290501]
[1756467456428,7.93,207.67,207.6,1.67290501]
[1756467456625,7.14687837,207.65,207.61,1.67290501]
[1756467456834,7.93,207.64,207.53,7.35]
[1756467457129,7.93,207.64,207.54,1.6738997]
[1756467457328,7.93,207.64,207.55,1.6738997]
[1756467457521,7.93,207.64,207.56,1.6738997]
[1756467457721,7.93,207.64,207.57,1.6738997]
[1756467457923,7.93,207.61,207.58,1.6738997]
[1756467458132,7.93,207.61,207.59,1.6738997]
[1756467458332,7.93,207.61,207.53,7.35]
[1756467458631,7.93,207.61,207.54,1.67307436]
[1756467458831,7.93,207.67,207.58,7.35]
[1756467459032,7.93,207.67,207.59,1.67307436]
[1756467459228,7.93,207.67,207.6,1.67307436]
[1756467459430,7.93,207.67,207.61,1.67307436]
[1756467459729,7.93,207.68,207.62,1.67307436]
[1756467459929,7.93,207.65,207.54,7.35]
[1756467460137,7.93,207.65,207.55,1.67271012]
[1756467460334,7.93,207.65,207.56,1.67271012]
[1756467460538,7.14687837,207.63,207.57,1.67271012]
[1756467460833,7.14687837,207.63,207.58,1.67271012]
[1756467461026,7.93,207.62,207.59,1.67271012]
[1756467461232,7.93,207.62,207.54,7.35]
[1756467461438,7.93,207.62,207.55,1.66992867]
[1756467461737,7.93,207.62,207.56,1.66992867]
[1756467461937,7.93,207.62,207.57,1.66992867]
[1756467462142,7.93,207.62,207.58,1.66992867]
[1756467462340,7.14687837,207.63,207.59,1.66992867]
[1756467462539,7.93,207.62,207.54,7.35]
[1756467462741,7.93,207.62,207.55,1.67059405]
[1756467463041,7.93,207.62,207.56,1.67059405]
[1756467463240,7.14687837,207.63,207.57,1.67059405]
[1756467463436,7.14687837,207.63,207.58,1.67059405]
[1756467463632,7.93,207.62,207.59,1.67059405]
[1756467463833,7.93,207.62,207.54,7.35]
[1756467464442,7.93,207.62,207.55,1.67070731]
[1756467464443,15.07687837,207.62,207.55,1.67070731]
[1756467464742,15.07687837,207.62,207.56,1.67070731]
[1756467464944,7.14687837,207.62,207.57,1.67070731]
[1756467465142,7.93,207.61,207.54,7.35]
[1756467465346,7.93,207.61,207.55,1.66914321]
[1756467465642,7.93,207.61,207.56,1.66914321]
[1756467465942,7.14687837,207.62,207.57,1.66914321]
[1756467466140,7.93,207.61,207.54,7.35]
[1756467466342,7.93,207.61,207.55,1.66894369]
[1756467466638,7.14687837,207.62,207.56,1.66894369]
[1756467466842,7.14687837,207.62,207.57,1.66894369]
[1756467467044,7.93,207.61,207.54,7.35]
[1756467467245,7.93,207.61,207.55,1.66777406]
[1756467467445,7.14687837,207.62,207.56,1.66777406]
[1756467467640,7.93,207.61,207.57,1.66777406]
[1756467467845,7.93,207.61,207.54,7.35]
[1756467468048,7.93,207.61,207.55,1.66762382]
[1756467468245,7.93,207.61,207.56,1.66762382]
[1756467468445,7.93,207.61,207.54,7.35]
[1756467468446,7.14687837,207.62,207.57,1.66762382]
[1756467468640,7.93,207.61,207.54,7.35]
[1756467468843,7.93,207.61,207.55,1.6674559]
[1756467469045,7.14687837,207.62,207.56,1.6674559]
[1756467469238,7.14687837,207.62,207.57,1.6674559]
[1756467469443,7.93,207.61,207.54,7.35]
[1756467469643,7.93,207.61,207.55,1.66680805]
[1756467469843,15.07687837,207.62,207.56,1.66680805]
[1756467470043,7.14687837,207.62,207.57,1.66680805]
[1756467470243,15.07687837,207.62,207.54,7.35]
[1756467470443,15.07687837,207.62,207.55,1.6663484]
[1756467470647,15.07687837,207.62,207.56,1.6663484]
[1756467470840,7.93,207.61,207.57,1.6663484]
[1756467471041,7.93,207.67,207.58,9.01546692]
[1756467471348,7.93,207.67,207.59,1.66546692]
[1756467471547,7.93,207.67,207.6,1.66546692]
[1756467471751,7.93,207.67,207.61,1.66546692]
[1756467471947,7.93,207.67,207.58,7.35]
[1756467472248,7.93,207.67,207.59,1.66582674]
[1756467472450,7.93,207.67,207.6,1.66582674]
[1756467472752,7.93,207.67,207.61,1.66582674]
[1756467472947,7.93,207.67,207.58,7.35]
[1756467473251,7.93,207.67,207.59,1.6660127]
[1756467473551,7.93,207.67,207.6,1.6660127]
[1756467473742,7.93,207.67,207.61,1.6660127]
[1756467474047,7.93,207.68,207.62,1.6660127]
[1756467474248,7.93,207.68,207.58,7.35]
[1756467474550,7.93,207.68,207.59,1.66666229]
[1756467474751,7.93,207.68,207.6,1.66666229]
[1756467474950,7.93,207.68,207.61,1.66665983]
[1756467475251,7.93,207.68,207.62,1.66665983]